[Event "European Online Club-ch-I 2021"]
[Site "Online"]
[Date "2021.03.27"]
[Round "9.12"]
[White "Nayhebaver, Martin"]
[Black "Boe, Mads"]
[Result "1-0"]
[ECO "B12"]
[WhiteElo "2485"]
[BlackElo "2250"]
[Annotator "ChessBase"]
[PlyCount "61"]
[EventDate "2021.03.27"]
[EventType "team-tourn"]
[EventCountry "NET"]
[SourceTitle "playchess.com"]
[Source "ChessBase"]
[SourceQuality "1"]
[TimeControl "900+5"]

1. e4 {[%emt 0:00:00]} c6 {[%emt 0:00:09]} 2. d4 {[%emt 0:00:05]} d5 {[%emt 0:00:03]} 3. e5 {[%emt 0:00:02]} Bf5 {[%emt 0:00:01]} 4. Bd3 {[%emt 0:00:02]} Bxd3 {[%emt 0:00:03]} 5. Qxd3 {[%emt 0:00:00]} e6 {[%emt 0:00:02]} 6. Ne2 {[%emt 0:00:02]} Nd7 {[%emt 0:00:13]} 7. O-O {[%emt 0:00:05]} Ne7 {[%emt 0:00:02]} 8. Nd2 {[%emt 0:00:13]} c5 {[%emt 0:00:20]} 9. c3 {[%emt 0:00:28]} Nc6 {[%emt 0:00:05]} 10. Nf3 {[%emt 0:00:09]} Be7 {[%emt 0:00:02]} 11. Ng3 {[%emt 0:00:22]} O-O {[%emt 0:00:06]} 12. Nh5 {[%emt 0:00:24]} cxd4 {[%emt 0:01:22]} 13. cxd4 {[%emt 0:00:12]} Rc8 {[%emt 0:01:06]} 14. a3 {[%emt 0:00:09]} Na5 {[%emt 0:00:40]} 15. b4 {[%emt 0:00:35]} Nc4 {[%emt 0:00:01]} 16. h4 {[%emt 0:00:18]} Bxh4 {[%emt 0:00:36]} 17. g3 {[%emt 0:00:10]} Be7 {[%emt 0:00:03]} 18. Kg2 {[%emt 0:00:11]} f5 {[%emt 0:00:12]} 19. exf6 {[%emt 0:00:44]} Nxf6 {[%emt 0:00:04]} 20. Ng5 {[%emt 0:00:19]} g6 {[%emt 0:02:19]} 21. Nf4 {[%emt 0:01:52]} e5 {[%emt 0:02:07]} 22. dxe5 {[%emt 0:01:04]} Nxe5 {[%emt 0:00:04]} 23. Qe2 {[%emt 0:00:08]} Qd6 {[%emt 0:00:08]} 24. Nfe6 {[%emt 0:01:59]} Rfe8 {[%emt 0:00:04]} 25. Bf4 {[%emt 0:01:31]} Ne4 {[%emt 0:00:23]} 26. Nxe4 {[%emt 0:01:20]} dxe4 {[%emt 0:00:02]} 27. Qa2 {[%emt 0:00:30]} Bf6 {[%emt 0:00:43]} 28. Ng5+ {[%emt 0:00:52]} Kg7 {[%emt 0:00:36]} 29. Bxe5 {[%emt 0:00:12]} Qxe5 {[%emt 0:00:04]} 30. Qf7+ {[%emt 0:00:06]} Kh6 {[%emt 0:00:01]} 31. Nxh7 {[%emt 0:00:24]} 1-0

[Event "European Online Club-ch-I 2021"]
[Site "Online"]
[Date "2021.03.27"]
[Round "9.13"]
[White "Hurdzan, Tomas"]
[Black "Anton Guijarro, David"]
[Result "0-1"]
[ECO "A88"]
[WhiteElo "2317"]
[BlackElo "2673"]
[Annotator "ChessBase"]
[PlyCount "94"]
[EventDate "2021.03.27"]
[EventType "team-tourn"]
[EventCountry "NET"]
[SourceTitle "playchess.com"]
[Source "ChessBase"]
[SourceQuality "1"]
[TimeControl "900+5"]

1. c4 {[%emt 0:00:00]} f5 {[%emt 0:00:07]} 2. g3 {[%emt 0:00:10]} Nf6 {[%emt 0:00:02]} 3. Bg2 {[%emt 0:00:03]} g6 {[%emt 0:00:04]} 4. Nc3 {[%emt 0:00:02]} Bg7 {[%emt 0:00:02]} 5. Nf3 {[%emt 0:00:29]} O-O {[%emt 0:00:03]} 6. O-O {[%emt 0:00:03]} d6 {[%emt 0:00:02]} 7. d4 {[%emt 0:00:13]} c6 {[%emt 0:00:02]} 8. Qb3 {[%emt 0:00:48]} Na6 {[%emt 0:00:19]} 9. Rd1 {[%emt 0:00:09]} Nc7 {[%emt 0:00:03]} 10. a4 {[%emt 0:00:54]} Kh8 {[%emt 0:00:21]} 11. d5 {[%emt 0:00:31]} c5 {[%emt 0:00:08]} 12. Bf4 {[%emt 0:01:23]} h6 {[%emt 0:00:07]} 13. Qc2 {[%emt 0:01:12]} g5 {[%emt 0:00:07]} 14. Bd2 {[%emt 0:00:19]} Qe8 {[%emt 0:00:39]} 15. e4 {[%emt 0:01:31]} fxe4 {[%emt 0:00:09]} 16. Nxe4 {[%emt 0:00:01]} Nxe4 {[%emt 0:00:03]} 17. Qxe4 {[%emt 0:00:04]} Bf5 {[%emt 0:00:02]} 18. Qe2 {[%emt 0:01:13]} Bxb2 {[%emt 0:01:15]} 19. Ra2 {[%emt 0:00:22]} Bf6 {[%emt 0:00:05]} 20. Re1 {[%emt 0:00:40]} Qg6 {[%emt 0:00:33]} 21. Ra3 {[%emt 0:00:57]} Rae8 {[%emt 0:00:18]} 22. Bc3 {[%emt 0:00:07]} e6 {[%emt 0:00:45]} 23. dxe6 {[%emt 0:00:35]} Rxe6 {[%emt 0:00:03]} 24. Bxf6+ {[%emt 0:00:08]} Qxf6 {[%emt 0:00:03]} 25. Re3 {[%emt 0:00:02]} Bg4 {[%emt 0:00:06]} 26. Rxe6 {[%emt 0:01:26]} Nxe6 {[%emt 0:00:03]} 27. Qe3 {[%emt 0:00:08]} Bxf3 {[%emt 0:00:34]} 28. Qxe6 {[%emt 0:00:05]} Bxg2 {[%emt 0:00:11]} 29. Qxf6+ {[%emt 0:00:03]} Rxf6 {[%emt 0:00:01]} 30. Kxg2 {[%emt 0:00:01]} Kg7 {[%emt 0:00:17]} 31. Re8 {[%emt 0:00:59]} Kf7 {[%emt 0:01:43]} 32. Rb8 {[%emt 0:00:17]} b6 {[%emt 0:00:04]} 33. Rb7+ {[%emt 0:00:04]} Ke6 {[%emt 0:00:02]} 34. Rxa7 {[%emt 0:00:02]} Ke5 {[%emt 0:01:13]} 35. Ra6 {[%emt 0:00:37]} d5 {[%emt 0:00:22]} 36. cxd5 {[%emt 0:00:03]} c4 {[%emt 0:00:01]} 37. Kf1 {[%emt 0:00:05]} c3 {[%emt 0:00:58]} 38. Ke2 {[%emt 0:02:05]} Rxf2+ {[%emt 0:00:20]} 39. Kd1 {[%emt 0:00:12]} Kd4 {[%emt 0:00:05]} 40. Rxb6 {[%emt 0:00:11]} Kd3 {[%emt 0:00:10]} 41. Ke1 {[%emt 0:00:01]} Re2+ {[%emt 0:01:09]} 42. Kf1 {[%emt 0:00:02]} c2 {[%emt 0:00:10]} 43. Rc6 {[%emt 0:00:02]} Re4 {[%emt 0:00:06]} 44. d6 {[%emt 0:00:15]} Rc4 {[%emt 0:00:03]} 45. d7 {[%emt 0:00:04]} c1=Q+ {[%emt 0:00:04]} 46. Kg2 {[%emt 0:00:04]} Qd2+ {[%emt 0:00:13]} 47. Kg1 {[%emt 0:00:05]} Qe3+ {[%emt 0:00:11]} 0-1

[Event "European Online Club-ch-I 2021"]
[Site "Online"]
[Date "2021.03.27"]
[Round "9.14"]
[White "Mchedlishvili, Mikheil"]
[Black "Mladek, Richard"]
[Result "1-0"]
[ECO "D55"]
[WhiteElo "2570"]
[BlackElo "2291"]
[Annotator "ChessBase"]
[PlyCount "77"]
[EventDate "2021.03.27"]
[EventType "team-tourn"]
[EventCountry "NET"]
[SourceTitle "playchess.com"]
[Source "ChessBase"]
[SourceQuality "1"]
[TimeControl "900+5"]

1. d4 {[%emt 0:00:00]} Nf6 {[%emt 0:00:03]} 2. c4 {[%emt 0:00:04]} e6 {[%emt 0:00:01]} 3. Nf3 {[%emt 0:00:05]} d5 {[%emt 0:00:02]} 4. Nc3 {[%emt 0:00:05]} Be7 {[%emt 0:00:02]} 5. Bg5 {[%emt 0:00:31]} O-O {[%emt 0:00:02]} 6. e3 {[%emt 0:00:03]} h6 {[%emt 0:00:03]} 7. Bxf6 {[%emt 0:00:26]} Bxf6 {[%emt 0:00:02]} 8. Qb3 {[%emt 0:00:02]} c6 {[%emt 0:00:52]} 9. Rd1 {[%emt 0:00:05]} Qa5 {[%emt 0:01:20]} 10. Bd3 {[%emt 0:00:29]} Nd7 {[%emt 0:00:57]} 11. O-O {[%emt 0:00:06]} dxc4 {[%emt 0:00:23]} 12. Qxc4 {[%emt 0:00:47]} Qh5 {[%emt 0:02:16]} 13. Bc2 {[%emt 0:00:39]} e5 {[%emt 0:01:12]} 14. d5 {[%emt 0:00:19]} Nb6 {[%emt 0:01:32]} 15. Qd3 {[%emt 0:00:26]} g6 {[%emt 0:00:03]} 16. dxc6 {[%emt 0:00:15]} bxc6 {[%emt 0:01:20]} 17. Ne4 {[%emt 0:00:16]} Bg7 {[%emt 0:00:09]} 18. Qd6 {[%emt 0:01:32]} Qf5 {[%emt 0:01:59]} 19. Rc1 {[%emt 0:00:17]} Qe6 {[%emt 0:00:38]} 20. Bb3 {[%emt 0:00:02]} Qxd6 {[%emt 0:00:13]} 21. Nxd6 {[%emt 0:00:02]} Bd7 {[%emt 0:00:01]} 22. Rfd1 {[%emt 0:00:13]} a5 {[%emt 0:00:09]} 23. Nd2 {[%emt 0:01:05]} a4 {[%emt 0:00:12]} 24. Bxf7+ {[%emt 0:00:28]} Rxf7 {[%emt 0:00:29]} 25. Nxf7 {[%emt 0:00:02]} Kxf7 {[%emt 0:00:00]} 26. Nc4 {[%emt 0:00:01]} Nd5 {[%emt 0:00:23]} 27. e4 {[%emt 0:00:03]} Nf6 {[%emt 0:00:43]} 28. Nxe5+ {[%emt 0:00:06]} Ke8 {[%emt 0:00:10]} 29. Nxd7 {[%emt 0:00:07]} Nxd7 {[%emt 0:00:03]} 30. Rxc6 {[%emt 0:00:04]} Bxb2 {[%emt 0:00:01]} 31. Rxg6 {[%emt 0:00:07]} a3 {[%emt 0:00:55]} 32. Rxh6 {[%emt 0:01:38]} Nc5 {[%emt 0:00:06]} 33. e5 {[%emt 0:00:12]} Ke7 {[%emt 0:00:19]} 34. f4 {[%emt 0:00:10]} Ra4 {[%emt 0:00:42]} 35. g3 {[%emt 0:00:03]} Ne4 {[%emt 0:00:08]} 36. Kg2 {[%emt 0:00:35]} Nc3 {[%emt 0:00:02]} 37. Rh7+ {[%emt 0:00:16]} Ke8 {[%emt 0:00:02]} 38. Rdd7 {[%emt 0:00:04]} Nxa2 {[%emt 0:00:30]} 39. Rb7 {[%emt 0:00:04]} 1-0

[Event "European Online Club-ch-I 2021"]
[Site "Online"]
[Date "2021.03.27"]
[Round "9.15"]
[White "Eret, Matous"]
[Black "Cuenca Jimenez, Jose Fernando"]
[Result "0-1"]
[ECO "C30"]
[WhiteElo "2255"]
[BlackElo "2506"]
[Annotator "ChessBase"]
[PlyCount "80"]
[EventDate "2021.03.27"]
[EventType "team-tourn"]
[EventCountry "NET"]
[SourceTitle "playchess.com"]
[Source "ChessBase"]
[SourceQuality "1"]
[TimeControl "900+5"]

1. e4 {[%emt 0:00:00]} d6 {[%emt 0:00:04]} 2. Nc3 {[%emt 0:00:07]} Nf6 {[%emt 0:00:02]} 3. f4 {[%emt 0:00:04]} e5 {[%emt 0:00:04]} 4. Nf3 {[%emt 0:00:03]} Be7 {[%emt 0:00:10]} 5. Bc4 {[%emt 0:00:12]} exf4 {[%emt 0:00:04]} 6. d4 {[%emt 0:00:28]} Nxe4 {[%emt 0:00:02]} 7. Bxf7+ {[%emt 0:00:11]} Kxf7 {[%emt 0:00:03]} 8. Nxe4 {[%emt 0:00:01]} Bf5 {[%emt 0:00:04]} 9. Nf2 {[%emt 0:00:09]} g5 {[%emt 0:00:27]} 10. d5 {[%emt 0:00:32]} c5 {[%emt 0:01:44]} 11. dxc6 {[%emt 0:00:37]} Nxc6 {[%emt 0:00:11]} 12. O-O {[%emt 0:00:12]} d5 {[%emt 0:00:45]} 13. b4 {[%emt 0:02:11]} Bf6 {[%emt 0:00:58]} 14. Rb1 {[%emt 0:00:26]} b5 {[%emt 0:02:56]} 15. Bb2 {[%emt 0:02:05]} d4 {[%emt 0:00:31]} 16. Qe2 {[%emt 0:02:54]} Qd5 {[%emt 0:00:37]} 17. a4 {[%emt 0:01:19]} a6 {[%emt 0:00:16]} 18. Rbd1 {[%emt 0:00:57]} Rhe8 {[%emt 0:00:35]} 19. Qd2 {[%emt 0:00:14]} Rad8 {[%emt 0:00:21]} 20. c3 {[%emt 0:00:55]} Qc4 {[%emt 0:01:47]} 21. cxd4 {[%emt 0:00:39]} Re2 {[%emt 0:00:13]} 22. Qc3 {[%emt 0:00:02]} Rc2 {[%emt 0:01:48]} 23. Qxc4+ {[%emt 0:01:07]} bxc4 {[%emt 0:00:02]} 24. b5 {[%emt 0:00:15]} axb5 {[%emt 0:01:53]} 25. axb5 {[%emt 0:00:03]} Ne7 {[%emt 0:00:12]} 26. Ba3 {[%emt 0:00:24]} Nd5 {[%emt 0:00:03]} 27. Ne5+ {[%emt 0:00:18]} Kg8 {[%emt 0:00:21]} 28. Nc6 {[%emt 0:00:28]} Rd7 {[%emt 0:00:29]} 29. Rc1 {[%emt 0:00:11]} Ra2 {[%emt 0:00:17]} 30. Bc5 {[%emt 0:00:05]} c3 {[%emt 0:00:02]} 31. Rfe1 {[%emt 0:00:09]} Rb2 {[%emt 0:00:15]} 32. b6 {[%emt 0:00:08]} c2 {[%emt 0:00:06]} 33. Ne4 {[%emt 0:00:04]} Bxe4 {[%emt 0:00:03]} 34. Rxe4 {[%emt 0:00:00]} Nc3 {[%emt 0:00:11]} 35. Ree1 {[%emt 0:00:14]} Na2 {[%emt 0:00:01]} 36. Kf2 {[%emt 0:00:03]} Nxc1 {[%emt 0:00:02]} 37. Rxc1 {[%emt 0:00:00]} g4 {[%emt 0:00:12]} 38. Ke2 {[%emt 0:00:02]} f3+ {[%emt 0:00:04]} 39. gxf3 {[%emt 0:00:01]} Bg5 {[%emt 0:00:05]} 40. b7 {[%emt 0:00:22]} Rdxb7 {[%emt 0:00:09]} 0-1

[Event "European Online Club-ch-I 2021"]
[Site "Online"]
[Date "2021.03.27"]
[Round "9.16"]
[White "Terry, Renato"]
[Black "Stinka, Jakub"]
[Result "1-0"]
[ECO "C44"]
[WhiteElo "2504"]
[BlackElo "2232"]
[Annotator "ChessBase"]
[PlyCount "61"]
[EventDate "2021.03.27"]
[EventType "team-tourn"]
[EventCountry "NET"]
[SourceTitle "playchess.com"]
[Source "ChessBase"]
[SourceQuality "1"]
[TimeControl "900+5"]

1. e4 {[%emt 0:00:00]} e5 {[%emt 0:00:05]} 2. Nf3 {[%emt 0:00:02]} Nc6 {[%emt 0:00:02]} 3. c3 {[%emt 0:00:02]} Nf6 {[%emt 0:00:10]} 4. d4 {[%emt 0:00:03]} exd4 {[%emt 0:00:56]} 5. e5 {[%emt 0:00:02]} Ne4 {[%emt 0:00:04]} 6. Qe2 {[%emt 0:00:03]} d5 {[%emt 0:03:20]} 7. exd6 {[%emt 0:00:11]} f5 {[%emt 0:00:12]} 8. Nxd4 {[%emt 0:00:11]} Nxd4 {[%emt 0:00:37]} 9. cxd4 {[%emt 0:00:04]} Bxd6 {[%emt 0:00:53]} 10. f3 {[%emt 0:00:05]} Qh4+ {[%emt 0:00:47]} 11. g3 {[%emt 0:00:05]} Bxg3+ {[%emt 0:00:18]} 12. hxg3 {[%emt 0:00:02]} Qxh1 {[%emt 0:00:32]} 13. fxe4 {[%emt 0:00:05]} fxe4 {[%emt 0:00:01]} 14. Nc3 {[%emt 0:00:07]} O-O {[%emt 0:00:05]} 15. Bf4 {[%emt 0:00:02]} Qf3 {[%emt 0:02:00]} 16. Qxf3 {[%emt 0:03:11]} exf3 {[%emt 0:00:02]} 17. Bc4+ {[%emt 0:00:02]} Kh8 {[%emt 0:00:02]} 18. Kf2 {[%emt 0:00:02]} Bf5 {[%emt 0:00:06]} 19. Nb5 {[%emt 0:01:03]} c6 {[%emt 0:00:27]} 20. Nd6 {[%emt 0:00:04]} Bg6 {[%emt 0:00:51]} 21. Nxb7 {[%emt 0:00:59]} Rae8 {[%emt 0:00:12]} 22. Be5 {[%emt 0:00:43]} Bh5 {[%emt 0:01:36]} 23. Rh1 {[%emt 0:01:42]} Bg6 {[%emt 0:00:06]} 24. Rc1 {[%emt 0:00:17]} h5 {[%emt 0:01:09]} 25. Bb3 {[%emt 0:00:36]} Kh7 {[%emt 0:00:53]} 26. Rxc6 {[%emt 0:00:42]} Rc8 {[%emt 0:00:13]} 27. Rxc8 {[%emt 0:00:07]} Rxc8 {[%emt 0:00:03]} 28. Nc5 {[%emt 0:00:02]} Rf8 {[%emt 0:00:10]} 29. Ne6 {[%emt 0:00:46]} Rc8 {[%emt 0:00:34]} 30. d5 {[%emt 0:00:06]} Bf5 {[%emt 0:00:31]} 31. d6 {[%emt 0:00:15]} 1-0

[Event "European Online Club-ch-I 2021"]
[Site "Online"]
[Date "2021.03.27"]
[Round "9.17"]
[White "Stephan, Victor"]
[Black "Socko, Bartosz"]
[Result "0-1"]
[ECO "E35"]
[WhiteElo "2430"]
[BlackElo "2618"]
[Annotator "ChessBase"]
[PlyCount "98"]
[EventDate "2021.03.27"]
[EventType "team-tourn"]
[EventCountry "NET"]
[SourceTitle "playchess.com"]
[Source "ChessBase"]
[SourceQuality "1"]
[TimeControl "900+5"]

1. d4 {[%emt 0:00:00]} Nf6 {[%emt 0:00:03]} 2. c4 {[%emt 0:00:05]} e6 {[%emt 0:00:01]} 3. Nc3 {[%emt 0:00:02]} Bb4 {[%emt 0:00:03]} 4. Qc2 {[%emt 0:00:02]} O-O {[%emt 0:00:02]} 5. Nf3 {[%emt 0:00:04]} d5 {[%emt 0:00:13]} 6. cxd5 {[%emt 0:00:03]} exd5 {[%emt 0:00:03]} 7. Bg5 {[%emt 0:00:05]} h6 {[%emt 0:00:02]} 8. Bxf6 {[%emt 0:00:02]} Qxf6 {[%emt 0:00:02]} 9. a3 {[%emt 0:00:02]} Bxc3+ {[%emt 0:00:03]} 10. Qxc3 {[%emt 0:00:02]} c6 {[%emt 0:00:06]} 11. e3 {[%emt 0:00:03]} Re8 {[%emt 0:00:09]} 12. Ne5 {[%emt 0:00:25]} Nd7 {[%emt 0:00:03]} 13. Nxd7 {[%emt 0:00:01]} Bxd7 {[%emt 0:00:00]} 14. Bd3 {[%emt 0:00:45]} Qg5 {[%emt 0:00:09]} 15. g3 {[%emt 0:00:39]} Bh3 {[%emt 0:00:16]} 16. O-O-O {[%emt 0:00:59]} Qf6 {[%emt 0:00:44]} 17. Rd2 {[%emt 0:00:58]} b6 {[%emt 0:00:03]} 18. Kb1 {[%emt 0:00:06]} Rac8 {[%emt 0:00:56]} 19. Rc1 {[%emt 0:00:09]} Rc7 {[%emt 0:00:49]} 20. Rdc2 {[%emt 0:00:22]} Re6 {[%emt 0:00:29]} 21. Bf1 {[%emt 0:00:31]} Bf5 {[%emt 0:00:19]} 22. Bd3 {[%emt 0:00:03]} Bh3 {[%emt 0:00:03]} 23. Bf1 {[%emt 0:00:02]} Bg4 {[%emt 0:00:24]} 24. Be2 {[%emt 0:00:21]} h5 {[%emt 0:00:02]} 25. h4 {[%emt 0:00:06]} Bxe2 {[%emt 0:00:45]} 26. Rxe2 {[%emt 0:00:03]} Qf3 {[%emt 0:00:04]} 27. Rec2 {[%emt 0:00:11]} Rf6 {[%emt 0:00:02]} 28. Qd3 {[%emt 0:00:14]} g6 {[%emt 0:00:04]} 29. b4 {[%emt 0:00:53]} Re7 {[%emt 0:00:19]} 30. Rd2 {[%emt 0:00:58]} Kg7 {[%emt 0:00:30]} 31. Rcc2 {[%emt 0:00:09]} Qh1+ {[%emt 0:00:14]} 32. Kb2 {[%emt 0:00:09]} a5 {[%emt 0:00:32]} 33. Rd1 {[%emt 0:00:21]} Qg2 {[%emt 0:00:02]} 34. Qf1 {[%emt 0:00:54]} Qf3 {[%emt 0:00:27]} 35. Qe2 {[%emt 0:00:08]} axb4 {[%emt 0:00:06]} 36. axb4 {[%emt 0:00:03]} Qf5 {[%emt 0:00:07]} 37. Qd3 {[%emt 0:00:06]} Qg4 {[%emt 0:00:55]} 38. Qe2 {[%emt 0:00:09]} Qf5 {[%emt 0:00:22]} 39. Qd3 {[%emt 0:00:02]} Qd7 {[%emt 0:00:01]} 40. Ra1 {[%emt 0:00:25]} Re4 {[%emt 0:00:17]} 41. Rac1 {[%emt 0:00:26]} Qb7 {[%emt 0:00:09]} 42. Qa3 {[%emt 0:00:07]} c5 {[%emt 0:00:05]} 43. dxc5 {[%emt 0:00:58]} bxc5 {[%emt 0:00:00]} 44. Rxc5 {[%emt 0:01:01]} Rxf2+ {[%emt 0:00:11]} 45. R1c2 {[%emt 0:00:35]} Rxb4+ {[%emt 0:00:16]} 46. Kc3 {[%emt 0:00:09]} Rxc2+ {[%emt 0:00:17]} 47. Kxc2 {[%emt 0:00:04]} d4 {[%emt 0:00:41]} 48. exd4 {[%emt 0:00:36]} Qe4+ {[%emt 0:00:06]} 49. Kc3 {[%emt 0:00:09]} Qxd4+ {[%emt 0:00:02]} 0-1

[Event "European Online Club-ch-I 2021"]
[Site "Online"]
[Date "2021.03.27"]
[Round "9.18"]
[White "Tomczak, Jacek"]
[Black "Bilquez, Romain"]
[Result "1-0"]
[ECO "C11"]
[WhiteElo "2610"]
[BlackElo "2276"]
[Annotator "ChessBase"]
[PlyCount "77"]
[EventDate "2021.03.27"]
[EventType "team-tourn"]
[EventCountry "NET"]
[SourceTitle "playchess.com"]
[Source "ChessBase"]
[SourceQuality "1"]
[TimeControl "900+5"]

1. e4 {[%emt 0:00:00]} e6 {[%emt 0:00:02]} 2. d4 {[%emt 0:00:02]} d5 {[%emt 0:00:04]} 3. Nc3 {[%emt 0:00:02]} Nf6 {[%emt 0:00:01]} 4. e5 {[%emt 0:00:03]} Nfd7 {[%emt 0:00:01]} 5. f4 {[%emt 0:00:01]} c5 {[%emt 0:00:01]} 6. Nf3 {[%emt 0:00:02]} Nc6 {[%emt 0:00:01]} 7. Be3 {[%emt 0:00:01]} Qb6 {[%emt 0:00:01]} 8. Na4 {[%emt 0:00:14]} Qa5+ {[%emt 0:00:01]} 9. c3 {[%emt 0:00:01]} c4 {[%emt 0:00:01]} 10. b4 {[%emt 0:00:28]} Qa6 {[%emt 0:00:01]} 11. a3 {[%emt 0:00:28]} b5 {[%emt 0:00:03]} 12. Nc5 {[%emt 0:00:24]} Qb6 {[%emt 0:00:01]} 13. g3 {[%emt 0:00:14]} Be7 {[%emt 0:00:10]} 14. Bh3 {[%emt 0:00:02]} g6 {[%emt 0:00:12]} 15. O-O {[%emt 0:00:03]} h5 {[%emt 0:00:03]} 16. a4 {[%emt 0:00:51]} a5 {[%emt 0:00:11]} 17. axb5 {[%emt 0:00:19]} Qxb5 {[%emt 0:00:10]} 18. Qc2 {[%emt 0:00:02]} Nxc5 {[%emt 0:02:36]} 19. bxc5 {[%emt 0:00:03]} a4 {[%emt 0:00:15]} 20. Rfb1 {[%emt 0:00:17]} Qa5 {[%emt 0:00:04]} 21. Bc1 {[%emt 0:00:32]} Bd7 {[%emt 0:00:10]} 22. Ra2 {[%emt 0:01:31]} Qa7 {[%emt 0:00:52]} 23. Ba3 {[%emt 0:00:24]} Na5 {[%emt 0:00:14]} 24. Ng5 {[%emt 0:00:20]} Nb3 {[%emt 0:00:46]} 25. Rf1 {[%emt 0:00:37]} Qa6 {[%emt 0:00:15]} 26. Qd1 {[%emt 0:01:01]} Rb8 {[%emt 0:02:47]} 27. Raf2 {[%emt 0:00:29]} Qa5 {[%emt 0:01:06]} 28. Qc2 {[%emt 0:00:09]} Qa6 {[%emt 0:00:55]} 29. c6 {[%emt 0:01:04]} Qxc6 {[%emt 0:00:46]} 30. Bxe7 {[%emt 0:00:04]} Kxe7 {[%emt 0:00:00]} 31. Qa2 {[%emt 0:01:22]} Nc5 {[%emt 0:02:15]} 32. dxc5 {[%emt 0:01:06]} Qxc5 {[%emt 0:00:03]} 33. Kh1 {[%emt 0:00:14]} Rb3 {[%emt 0:00:18]} 34. Qc2 {[%emt 0:02:18]} a3 {[%emt 0:00:19]} 35. Nxf7 {[%emt 0:00:17]} Rf8 {[%emt 0:01:20]} 36. Nd6 {[%emt 0:00:32]} Rb2 {[%emt 0:00:07]} 37. Qxg6 {[%emt 0:00:04]} Rxf2 {[%emt 0:00:37]} 38. Qg5+ {[%emt 0:00:07]} Rf6 {[%emt 0:00:10]} 39. Qxf6# {[%emt 0:00:02]} 1-0

[Event "European Online Club-ch-I 2021"]
[Site "Online"]
[Date "2021.03.27"]
[Round "9.19"]
[White "Devallee, Jeremie"]
[Black "Klekowski, Maciej"]
[Result "0-1"]
[ECO "B22"]
[WhiteElo "2220"]
[BlackElo "2510"]
[Annotator "ChessBase"]
[PlyCount "82"]
[EventDate "2021.03.27"]
[EventType "team-tourn"]
[EventCountry "NET"]
[SourceTitle "playchess.com"]
[Source "ChessBase"]
[SourceQuality "1"]
[TimeControl "900+5"]

1. e4 {[%emt 0:00:00]} c5 {[%emt 0:00:02]} 2. d4 {[%emt 0:00:02]} cxd4 {[%emt 0:00:01]} 3. c3 {[%emt 0:00:01]} Nf6 {[%emt 0:00:01]} 4. e5 {[%emt 0:00:02]} Nd5 {[%emt 0:00:01]} 5. Nf3 {[%emt 0:00:01]} Nc6 {[%emt 0:00:01]} 6. Bc4 {[%emt 0:00:02]} e6 {[%emt 0:00:01]} 7. cxd4 {[%emt 0:00:02]} d6 {[%emt 0:00:02]} 8. O-O {[%emt 0:00:01]} Be7 {[%emt 0:00:02]} 9. Qe2 {[%emt 0:00:04]} O-O {[%emt 0:00:03]} 10. Nc3 {[%emt 0:00:02]} Nxc3 {[%emt 0:00:03]} 11. bxc3 {[%emt 0:00:02]} dxe5 {[%emt 0:00:00]} 12. dxe5 {[%emt 0:00:02]} Qc7 {[%emt 0:00:01]} 13. Bd3 {[%emt 0:00:02]} b6 {[%emt 0:00:04]} 14. Qe4 {[%emt 0:00:02]} g6 {[%emt 0:00:01]} 15. Bg5 {[%emt 0:00:02]} Bxg5 {[%emt 0:04:18]} 16. Nxg5 {[%emt 0:00:04]} Nxe5 {[%emt 0:00:04]} 17. Rfd1 {[%emt 0:06:39]} h6 {[%emt 0:01:22]} 18. Nh7 {[%emt 0:02:20]} Bb7 {[%emt 0:02:34]} 19. Nf6+ {[%emt 0:00:04]} Kg7 {[%emt 0:00:02]} 20. Qh4 {[%emt 0:01:07]} Qd8 {[%emt 0:00:15]} 21. Be4 {[%emt 0:01:17]} Qxf6 {[%emt 0:00:05]} 22. Qxf6+ {[%emt 0:00:02]} Kxf6 {[%emt 0:00:00]} 23. Bxb7 {[%emt 0:00:02]} Rab8 {[%emt 0:00:00]} 24. Ba6 {[%emt 0:00:02]} Rfd8 {[%emt 0:00:06]} 25. Kf1 {[%emt 0:02:09]} Nd7 {[%emt 0:00:08]} 26. Rd4 {[%emt 0:01:37]} Nc5 {[%emt 0:00:02]} 27. Be2 {[%emt 0:00:02]} e5 {[%emt 0:00:04]} 28. Rh4 {[%emt 0:00:14]} h5 {[%emt 0:00:07]} 29. Ke1 {[%emt 0:00:06]} Rbc8 {[%emt 0:00:24]} 30. a4 {[%emt 0:01:02]} Ne6 {[%emt 0:00:06]} 31. c4 {[%emt 0:00:10]} Nf4 {[%emt 0:00:10]} 32. Bf1 {[%emt 0:00:05]} g5 {[%emt 0:00:05]} 33. Rxf4+ {[%emt 0:00:01]} exf4 {[%emt 0:00:03]} 34. a5 {[%emt 0:00:02]} Rc5 {[%emt 0:00:02]} 35. axb6 {[%emt 0:00:02]} axb6 {[%emt 0:00:13]} 36. Rb1 {[%emt 0:00:09]} Re5+ {[%emt 0:00:02]} 37. Be2 {[%emt 0:00:04]} Rd6 {[%emt 0:00:01]} 38. Kf1 {[%emt 0:00:07]} g4 {[%emt 0:00:03]} 39. h3 {[%emt 0:00:06]} Kg5 {[%emt 0:00:04]} 40. hxg4 {[%emt 0:00:08]} hxg4 {[%emt 0:00:00]} 41. Rc1 {[%emt 0:00:06]} Rh6 {[%emt 0:00:01]} 0-1